fUSD/lending_fUSD_20250623
["ID","MTS","AMOUNT","RATE_DAILY","PERIOD"]
[367188858,1750696256332,-1101.93,0.00023545,2]
[367188859,1750696256341,-490.0,0.00023545,2]
[367188860,1750696256351,-11788.78,0.00023545,2]
[367188861,1750696256360,-279.31347348,0.00023545,2]
[367188862,1750696256369,-2122.39,0.00023545,2]
[367188863,1750696256379,-1677.56,0.00023545,2]
[367188864,1750696256388,-770.72,0.00023545,2]
[367188865,1750696256398,-1452.88,0.00023545,2]
[367188866,1750696256412,-577.62,0.00023545,2]
[367188867,1750696256422,-1844.29,0.00023545,2]
[367188868,1750696256432,-1649.49,0.00023545,2]
[367188869,1750696256442,-5629.07,0.00023545,2]
[367188870,1750696256451,-8269.14,0.00023545,2]
[367188871,1750696256460,-1700.42,0.00023545,2]
[367188872,1750696256470,-1960.47,0.00023545,2]
[367188873,1750696256480,-666.0,0.00023545,2]
[367188874,1750696256489,-2074.31,0.00023545,2]
[367188875,1750696256499,-1278.48,0.00023545,2]
[367188876,1750696256509,-490.0,0.00023545,2]
[367188877,1750696256519,-914.55,0.00023545,2]
[367188878,1750696256531,-1093.48,0.00023545,2]
[367188879,1750696256540,-2233.27,0.00023545,2]
[367188880,1750696256551,-490.0,0.00023546,2]
[367188881,1750696256563,-691.4,0.00023546,2]
[367188882,1750696256573,-490.0,0.00023546,2]
[367188883,1750696256584,-998.19,0.00023546,2]
[367188884,1750696256594,-490.0,0.00023546,2]
[367188885,1750696256603,-490.0,0.00023546,2]
[367188886,1750696256613,-490.0,0.00023546,2]
[367188887,1750696256623,-854.09,0.00023546,2]
[367188888,1750696256632,-490.0,0.00023546,2]
[367188889,1750696256641,-490.0,0.00023546,2]
[367188890,1750696256651,-1313.52,0.00023546,2]
[367188891,1750696256663,-829.84,0.00023546,2]
[367188892,1750696256673,-490.0,0.00023546,2]
[367188893,1750696256682,-285.57571525,0.00023546,2]
[367188894,1750696256692,-490.0,0.00023546,2]
[367188895,1750696256701,-1670.41,0.00023546,2]
[367188896,1750696256710,-490.0,0.00023546,2]
[367188897,1750696256720,-490.0,0.00023546,2]
[367188898,1750696256730,-490.0,0.00023546,2]
[367188899,1750696256739,-490.0,0.00023546,2]
[367188900,1750696256748,-582.52,0.00023546,2]
[367188901,1750696256758,-803.97,0.00023546,2]
[367188902,1750696256768,-589.88,0.00023546,2]
[367188903,1750696256778,-1377.34,0.00023546,2]
[367188904,1750696256787,-588.13,0.00023546,2]
[367188905,1750696256796,-838.56,0.00023546,2]
[367188906,1750696256805,-1198.99,0.00023546,2]
[367188907,1750696256816,-799.28,0.00023546,2]
[367188908,1750696256827,-490.0,0.00023546,2]
[367188909,1750696256837,-1312.42,0.00023546,2]
[367188910,1750696256846,-955.04,0.00023546,2]
[367188911,1750696256857,-490.0,0.00023546,2]
[367188912,1750696256866,-1231.64,0.00023546,2]
[367188913,1750696256876,-356.5739278,0.00023546,2]
[367188914,1750696256886,-1608.99,0.00023546,2]
[367188915,1750696256895,-490.76,0.00023546,2]
[367188916,1750696256906,-817.02,0.00023546,2]
[367188917,1750696256915,-893.45,0.00023546,2]
[367188918,1750696256925,-528.98,0.00023546,2]
[367188919,1750696256934,-1548.13,0.00023546,2]
[367188920,1750696256945,-1145.9,0.00023546,2]
[367188921,1750696256954,-976.17,0.00023546,2]
[367188922,1750696256964,-651.05,0.00023546,2]
[367188923,1750696256973,-693.21,0.00023546,2]
[367188924,1750696256983,-1116.1,0.00023546,2]
[367188925,1750696256992,-1087.23,0.00023546,2]
[367188926,1750696257002,-490.0,0.00023546,2]
[367188927,1750696257011,-1036.63,0.00023546,2]
[367188928,1750696257021,-893.81,0.00023546,2]
[367188929,1750696257030,-1086.46,0.00023546,2]
[367188930,1750696257040,-570.53,0.00023546,2]
[367188931,1750696257049,-490.0,0.00023546,2]
[367188932,1750696257059,-2634.25,0.00023546,2]
[367188933,1750696257068,-490.0,0.00023546,2]
[367188934,1750696257079,-490.0,0.00023546,2]
[367188935,1750696257088,-630.96,0.00023546,2]
[367188936,1750696257098,-490.0,0.00023546,2]
[367188937,1750696257107,-490.0,0.00023546,2]
[367188938,1750696257117,-490.0,0.00023546,2]
[367188939,1750696257126,-638.89,0.00023546,2]
[367188940,1750696257136,-884.07,0.00023546,2]
[367188941,1750696257146,-222.26142813,0.00023546,2]
[367188942,1750696257156,-490.0,0.00023546,2]
[367188943,1750696257166,-630.61,0.00023546,2]
[367188944,1750696257176,-1880.77,0.00023546,2]
[367188945,1750696257186,-1562.12,0.00023546,2]
[367188946,1750696257195,-1550.31,0.00023546,2]
[367188947,1750696257205,-1269.66,0.00023546,2]
[367188948,1750696257214,-721.18,0.00023546,2]
[367188949,1750696257224,-621.46,0.00023546,2]
[367188950,1750696257234,-562.99,0.00023546,2]
[367188951,1750696257243,-588.55,0.00023546,2]
[367188952,1750696257253,-1623.62,0.00023546,2]
[367188953,1750696257262,-1634.79,0.00023546,2]
[367188954,1750696257272,-490.0,0.00023546,2]
[367188955,1750696257282,-922.43,0.00023546,2]
[367188956,1750696257291,-1907.21,0.00023546,2]
[367188957,1750696257301,-490.0,0.00023546,2]
[367188958,1750696257311,-584.15,0.00023546,2]
[367188959,1750696257321,-490.0,0.00023546,2]
[367188960,1750696257331,-860.91,0.00023546,2]
[367188961,1750696257340,-1334.28,0.00023546,2]
[367188962,1750696257350,-512.82,0.00023546,2]
[367188963,1750696257360,-1569.15,0.00023546,2]
[367188964,1750696257370,-2594.21,0.00023546,2]
[367188965,1750696257379,-1456.62,0.00023546,2]
[367188966,1750696257389,-1245.9,0.00023546,2]
[367188967,1750696257398,-1204.26,0.00023546,2]
[367188968,1750696257409,-549.33,0.00023546,2]
[367188969,1750696257419,-2674.57,0.00023546,2]
[367188970,1750696257428,-614.83898912,0.00023546,2]
[367188971,1750696257438,-1237.3,0.00023546,2]
[367188972,1750696257448,-967.87,0.00023546,2]
[367188973,1750696257458,-1832.69,0.00023546,2]
[367188974,1750696257468,-886.44,0.00023546,2]
[367188975,1750696257478,-3223.48,0.00023546,2]
[367188976,1750696257488,-490.0,0.00023546,2]
[367188977,1750696257498,-1647.91,0.00023546,2]
[367188978,1750696257508,-490.0,0.00023546,2]
[367188979,1750696257518,-4082.72,0.00023546,2]
[367188980,1750696257528,-1854.63,0.00023546,2]
[367188981,1750696257537,-1647.87,0.00023546,2]
[367188982,1750696257547,-840.77,0.00023546,2]
[367188983,1750696257557,-490.0,0.00023546,2]
[367188984,1750696257568,-490.0,0.00023546,2]
[367188985,1750696257578,-4027.5,0.00023546,2]
[367188986,1750696257587,-1960.76,0.00023546,2]
[367188987,1750696257597,-2342.92,0.00023546,2]
[367188988,1750696257607,-352.01398423,0.00023546,2]
[367188989,1750696257616,-2896.39,0.00023546,2]
[367188990,1750696257626,-2065.01,0.00023546,2]
[367188991,1750696257636,-1955.29,0.00023546,2]
[367188992,1750696257645,-490.0,0.00023546,2]
[367188993,1750696257655,-1734.1,0.00023546,2]
[367188994,1750696257668,-494.61,0.00023546,2]
[367188995,1750696257678,-4270.51,0.00023546,2]
[367188996,1750696257688,-1351.79,0.00023546,2]
[367188997,1750696257698,-714.05,0.00023546,2]
[367188998,1750696257708,-1370.53,0.00023546,2]
[367188999,1750696257717,-1163.96,0.00023546,2]
[367189000,1750696257727,-319.29658236,0.00023546,2]
[367189001,1750696257737,-717.76,0.00023546,2]
[367189002,1750696257746,-490.0,0.00023546,2]
[367189003,1750696257756,-1998.34,0.00023546,2]
[367189004,1750696257765,-2616.4,0.00023546,2]
[367189005,1750696257775,-1063.44,0.00023546,2]
[367189006,1750696257785,-490.0,0.00023546,2]
[367189007,1750696257795,-1489.94,0.00023546,2]
[367189008,1750696257806,-2998.02,0.00023546,2]
[367189009,1750696257819,-1779.49,0.00023546,2]
[367189010,1750696257831,-1279.22,0.00023546,2]
[367189011,1750696257841,-841.39,0.00023546,2]
[367189012,1750696257851,-1618.15,0.00023546,2]
[367189013,1750696257863,-505.84,0.00023546,2]
[367189014,1750696257872,-490.0,0.00023546,2]
[367189015,1750696257882,-1669.51,0.00023546,2]
[367189016,1750696257893,-490.0,0.00023546,2]
[367189017,1750696257903,-1676.45,0.00023546,2]
[367189018,1750696257913,-1774.78,0.00023546,2]
[367189019,1750696257923,-1320.85,0.00023546,2]
[367189020,1750696257933,-1556.73,0.00023546,2]
[367189021,1750696257942,-490.0,0.00023546,2]
[367189022,1750696257952,-2015.79,0.00023546,2]
[367189023,1750696257962,-490.0,0.00023546,2]
[367189024,1750696257971,-1670.67,0.00023546,2]
[367189025,1750696257981,-283.15349097,0.00023546,2]
[367189026,1750696257991,-490.0,0.00023546,2]
[367189027,1750696258001,-1907.63,0.00023546,2]
[367189028,1750696258010,-3680.35,0.00023546,2]
[367189029,1750696258020,-1547.96,0.00023546,2]
[367189030,1750696258030,-1294.48,0.00023546,2]
[367189031,1750696258039,-601.94,0.00023546,2]
[367189032,1750696258049,-4330.54,0.00023546,2]
[367189033,1750696258059,-3101.98,0.00023546,2]
[367189034,1750696258068,-1965.54,0.00023546,2]
[367189035,1750696258078,-150.0,0.00023557,2]
[367189036,1750696258088,-150.0,0.00023557,2]
[367189037,1750696258098,-160.21406452,0.00023559,2]
[367189038,1750696258107,-500.0,0.00023559,2]
[367189039,1750696258116,-1199.78,0.00023559,2]
[367189040,1750696258126,-1265.84,0.00023559,2]
[367189041,1750696258135,-151.0,0.0002356,7]
[367189042,1750696258146,-151.0,0.0002356,7]
[367189043,1750696258155,-151.0,0.0002356,7]
[367189044,1750696258167,-267.227616,0.0002356,7]
[367189045,1750696258177,-1000.0,0.0002356,2]
[367189046,1750696258187,-194.071796,0.0002356,7]
[367189047,1750696258197,-194.071796,0.0002356,7]
[367189048,1750696258207,-304.320331,0.0002356,2]
[367189049,1750696258216,-304.320331,0.0002356,2]
[367189050,1750696258225,-151.0,0.0002356,7]
[367189051,1750696258234,-151.0,0.0002356,7]
[367189052,1750696258243,-151.0,0.0002356,7]
[367189053,1750696258254,-500.85009793,0.00023567,2]
[367189054,1750696258264,-150.0,0.0002357,2]
[367189055,1750696258356,-150.0,0.00023572,2]
[367189056,1750696258366,-28106.60710479,0.00023576,2]
[367189057,1750696258375,-500.0,0.00023617,2]
[367189058,1750696258385,-524.8880521,0.00023617,2]
[367189059,1750696258394,-150.0,0.00023632,2]
[367189060,1750696258404,-500.0,0.00023637,2]
[367189061,1750696258416,-400.0,0.00023655,2]
[367189062,1750696258425,-374.07186493,0.00023657,2]
[367189063,1750696258434,-1093.48,0.00023657,2]
[367189064,1750696258444,-300.0,0.00023658,2]
[367189065,1750696258454,-169.048,0.00023658,2]
[367189066,1750696258463,-490.0,0.00023658,2]
[367189067,1750696258473,-490.0,0.00023658,2]
[367189068,1750696258482,-648.05,0.00023658,2]
[367189069,1750696258491,-490.0,0.00023658,2]
[367189070,1750696258500,-490.0,0.00023658,2]
[367189071,1750696258510,-614.87,0.00023658,2]
[367189072,1750696258520,-490.0,0.00023658,2]
[367189073,1750696258529,-490.0,0.00023658,2]
[367189074,1750696258539,-490.0,0.00023658,2]
[367189075,1750696258548,-490.0,0.00023658,2]
[367189076,1750696258557,-490.0,0.00023658,2]
[367189077,1750696258566,-490.0,0.00023658,2]
[367189078,1750696258575,-685.74,0.00023658,2]
[367189079,1750696258585,-637.15,0.00023658,2]
[367189080,1750696258595,-490.0,0.00023658,2]
[367189081,1750696258604,-808.46,0.00023658,2]
[367189082,1750696258614,-428.07,0.00023658,2]
[367189083,1750696258623,-710.55,0.00023658,2]
[367189084,1750696258634,-490.0,0.00023658,2]
[367189085,1750696258644,-490.0,0.00023658,2]
[367189086,1750696258655,-490.0,0.00023658,2]
[367189087,1750696258667,-490.0,0.00023658,2]
[367189088,1750696258676,-490.0,0.00023658,2]
[367189089,1750696258686,-490.0,0.00023658,2]
[367189090,1750696258695,-490.0,0.00023658,2]
[367189091,1750696258705,-902.96,0.00023658,2]
[367189092,1750696258715,-490.0,0.00023658,2]
[367189093,1750696258724,-639.61,0.00023658,2]
[367189094,1750696258733,-559.34,0.00023658,2]
[367189095,1750696258743,-490.0,0.00023658,2]
[367189096,1750696258752,-490.0,0.00023658,2]
[367189097,1750696258762,-490.0,0.00023658,2]
[367189098,1750696258771,-490.0,0.00023658,2]
[367189099,1750696258781,-490.0,0.00023658,2]
[367189100,1750696258792,-1000.0,0.00023658,2]
[367189101,1750696258801,-490.0,0.00023658,2]
[367189102,1750696258811,-490.0,0.00023658,2]
[367189103,1750696258824,-490.0,0.00023658,2]
[367189104,1750696258835,-490.0,0.00023658,2]
[367189105,1750696258844,-471.07320244,0.00023658,2]
[367189106,1750696258854,-490.0,0.00023658,2]
[367189107,1750696258864,-1097.0,0.00023658,2]
[367189108,1750696258873,-1263.54,0.00023658,2]
[367189109,1750696258882,-490.0,0.00023658,2]
[367189110,1750696258894,-490.0,0.00023658,2]
[367189111,1750696258904,-490.0,0.00023658,2]
[367189112,1750696258917,-490.0,0.00023658,2]
[367189113,1750696258927,-991.44,0.00023658,2]
[367189114,1750696258936,-727.87,0.00023658,2]
[367189115,1750696258946,-490.0,0.00023658,2]
[367189116,1750696258956,-490.0,0.00023658,2]
[367189117,1750696258966,-540.51,0.00023658,2]
[367189118,1750696258975,-517.11,0.00023658,2]
[367189119,1750696258984,-490.0,0.00023658,2]
[367189120,1750696258994,-490.0,0.00023658,2]
[367189121,1750696259004,-490.0,0.00023658,2]
[367189122,1750696259014,-490.0,0.00023658,2]
[367189123,1750696259024,-151.0,0.00023658,7]
[367189124,1750696259033,-490.0,0.00023658,2]
[367189125,1750696259043,-490.0,0.00023658,2]
[367189126,1750696259053,-490.0,0.00023658,2]
[367189127,1750696259062,-1001.0,0.00023658,2]
[367189128,1750696259072,-490.0,0.00023658,2]
[367189129,1750696259082,-490.0,0.00023658,2]
[367189130,1750696259091,-490.0,0.00023658,2]
[367189131,1750696259101,-642.51,0.00023658,2]
[367189132,1750696259111,-490.0,0.00023658,2]
[367189133,1750696259120,-490.0,0.00023658,2]
[367189134,1750696259129,-490.0,0.00023658,2]
[367189135,1750696259138,-490.0,0.00023658,2]
[367189136,1750696259147,-490.0,0.00023658,2]
[367189137,1750696259159,-490.0,0.00023658,2]
[367189138,1750696259168,-490.0,0.00023658,2]
[367189139,1750696259178,-490.0,0.00023658,2]
[367189140,1750696259187,-490.0,0.00023658,2]
[367189141,1750696259197,-490.0,0.00023658,2]
[367189142,1750696259207,-490.0,0.00023658,2]
[367189143,1750696259217,-490.0,0.00023658,2]
[367189144,1750696259227,-490.0,0.00023658,2]
[367189145,1750696259236,-490.0,0.00023658,2]
[367189146,1750696259246,-490.0,0.00023658,2]
[367189147,1750696259255,-490.0,0.00023658,2]
[367189148,1750696259264,-490.0,0.00023658,2]
[367189149,1750696259274,-490.0,0.00023658,2]
[367189150,1750696259283,-490.0,0.00023658,2]
[367189151,1750696259293,-490.0,0.00023658,2]
[367189152,1750696259302,-490.0,0.00023658,2]
[367189153,1750696259312,-490.0,0.00023658,2]
[367189154,1750696259322,-490.0,0.00023658,2]
[367189155,1750696259331,-490.0,0.00023658,2]
[367189156,1750696259341,-490.0,0.00023658,2]
[367189157,1750696259350,-490.0,0.00023658,2]
[367189158,1750696259361,-279.38208531,0.00023658,2]
[367189159,1750696259371,-490.0,0.00023658,2]
[367189160,1750696259380,-490.0,0.00023658,2]
[367189161,1750696259390,-490.0,0.00023658,2]
[367189162,1750696259399,-490.0,0.00023658,2]
[367189163,1750696259408,-622.8,0.00023658,2]
[367189164,1750696259418,-490.0,0.00023658,2]
[367189165,1750696259427,-836.89,0.00023658,2]
[367189166,1750696259437,-490.0,0.00023658,2]
[367189167,1750696259446,-490.0,0.00023658,2]
[367189168,1750696259456,-490.0,0.00023658,2]
[367189169,1750696259465,-490.0,0.00023658,2]
[367189170,1750696259475,-490.0,0.00023658,2]
[367189171,1750696259485,-490.0,0.00023658,2]
[367189172,1750696259495,-490.0,0.00023658,2]
[367189173,1750696259504,-490.0,0.00023658,2]
[367189174,1750696259514,-490.0,0.00023658,2]
[367189175,1750696259524,-490.0,0.00023658,2]
[367189176,1750696259533,-490.0,0.00023658,2]
[367189177,1750696259542,-490.0,0.00023658,2]
[367189178,1750696259552,-490.0,0.00023658,2]
[367189179,1750696259562,-490.0,0.00023658,2]
[367189180,1750696259571,-490.0,0.00023658,2]
[367189181,1750696259580,-490.0,0.00023658,2]
[367189182,1750696259590,-490.0,0.00023658,2]
[367189183,1750696259599,-490.0,0.00023658,2]
[367189184,1750696259609,-490.0,0.00023658,2]
[367189185,1750696259619,-490.0,0.00023658,2]
[367189186,1750696259628,-490.0,0.00023658,2]
[367189187,1750696259638,-490.0,0.00023658,2]
[367189188,1750696259647,-490.0,0.00023658,2]
[367189189,1750696259658,-490.0,0.00023658,2]
[367189190,1750696259667,-490.0,0.00023658,2]
[367189191,1750696259676,-1650.07,0.00023658,2]
[367189192,1750696259686,-657.15,0.00023658,2]
[367189193,1750696259695,-490.0,0.00023658,2]
[367189194,1750696259704,-490.0,0.00023658,2]
[367189195,1750696259713,-490.0,0.00023658,2]
[367189196,1750696259724,-490.0,0.00023658,2]
[367189197,1750696259735,-1113.48,0.00023658,2]
[367189198,1750696259744,-490.0,0.00023658,2]
[367189199,1750696259754,-490.0,0.00023658,2]
[367189200,1750696259763,-490.0,0.00023658,2]
[367189201,1750696259772,-490.0,0.00023658,2]
[367189202,1750696259781,-581.82,0.00023658,2]
[367189203,1750696259790,-490.0,0.00023658,2]
[367189204,1750696259800,-500.0,0.00023658,2]
[367189205,1750696259810,-490.0,0.00023658,2]
[367189206,1750696259822,-490.0,0.00023658,2]
[367189207,1750696259833,-490.0,0.00023658,2]
[367189208,1750696259844,-490.0,0.00023658,2]
[367189209,1750696259855,-490.0,0.00023658,2]
[367189210,1750696259865,-790.01,0.00023658,2]
[367189211,1750696259874,-490.0,0.00023658,2]
[367189212,1750696259883,-490.0,0.00023658,2]
[367189213,1750696259892,-490.0,0.00023658,2]
[367189214,1750696259902,-689.06,0.00023658,2]
[367189215,1750696259914,-490.0,0.00023658,2]
[367189216,1750696259924,-490.0,0.00023658,2]
[367189217,1750696259933,-490.0,0.00023658,2]
[367189218,1750696259942,-490.0,0.00023658,2]
[367189219,1750696259951,-490.0,0.00023658,2]
[367189220,1750696259960,-490.0,0.00023658,2]
[367189221,1750696259970,-490.0,0.00023658,2]
[367189222,1750696259979,-490.0,0.00023658,2]
[367189223,1750696259990,-529.22,0.00023658,2]
[367189224,1750696259999,-553.2,0.00023658,2]
[367189225,1750696260009,-490.0,0.00023658,2]
[367189226,1750696260019,-490.0,0.00023658,2]
[367189227,1750696260029,-490.0,0.00023658,2]
[367189228,1750696260038,-490.0,0.00023658,2]
[367189229,1750696260048,-490.0,0.00023658,2]
[367189230,1750696260057,-490.0,0.00023658,2]
[367189231,1750696260067,-490.0,0.00023658,2]
[367189232,1750696260076,-490.0,0.00023658,2]
[367189233,1750696260086,-490.0,0.00023658,2]
[367189234,1750696260095,-490.0,0.00023658,2]
[367189235,1750696260105,-751.28,0.00023658,2]
[367189236,1750696260114,-490.0,0.00023658,2]
[367189237,1750696260124,-679.16,0.00023658,2]
[367189238,1750696260134,-490.0,0.00023658,2]
[367189239,1750696260144,-1035.04,0.00023658,2]
[367189240,1750696260154,-661.09,0.00023658,2]
[367189241,1750696260167,-490.0,0.00023658,2]
[367189242,1750696260176,-490.0,0.00023658,2]
[367189243,1750696260185,-490.0,0.00023658,2]
[367189244,1750696260195,-490.0,0.00023658,2]
[367189245,1750696260204,-490.0,0.00023658,2]
[367189246,1750696260214,-490.0,0.00023658,2]
[367189247,1750696260224,-490.0,0.00023658,2]
[367189248,1750696260234,-490.0,0.00023658,2]
[367189249,1750696260244,-490.0,0.00023658,2]
[367189250,1750696260253,-490.0,0.00023658,2]
[367189251,1750696260262,-490.0,0.00023658,2]
[367189252,1750696260271,-490.0,0.00023658,2]
[367189253,1750696260281,-490.0,0.00023658,2]
[367189254,1750696260290,-500.0,0.00023658,2]
[367189255,1750696260299,-490.0,0.00023658,2]
[367189256,1750696260308,-490.0,0.00023658,2]
[367189257,1750696260318,-490.0,0.00023658,2]
[367189258,1750696260327,-490.0,0.00023658,2]
[367189259,1750696260337,-490.0,0.00023658,2]
[367189260,1750696260347,-490.0,0.00023658,2]
[367189261,1750696260356,-490.0,0.00023658,2]
[367189262,1750696260366,-490.0,0.00023658,2]
[367189263,1750696260375,-490.0,0.00023658,2]
[367189264,1750696260384,-490.0,0.00023658,2]
[367189265,1750696260393,-667.67,0.00023658,2]
[367189266,1750696260403,-490.0,0.00023658,2]
[367189267,1750696260416,-490.0,0.00023658,2]
[367189268,1750696260426,-490.0,0.00023658,2]
[367189269,1750696260435,-490.0,0.00023658,2]
[367189270,1750696260445,-490.0,0.00023658,2]
[367189271,1750696260454,-490.0,0.00023658,2]
[367189272,1750696260464,-490.0,0.00023658,2]
[367189273,1750696260473,-490.0,0.00023658,2]
[367189274,1750696260482,-490.0,0.00023658,2]
[367189275,1750696260492,-490.0,0.00023658,2]
[367189276,1750696260501,-761.29,0.00023658,2]
[367189277,1750696260511,-734.61,0.00023658,2]
[367189278,1750696260520,-490.0,0.00023658,2]
[367189279,1750696260529,-634.36,0.00023658,2]
[367189280,1750696260539,-731.29,0.00023658,2]
[367189281,1750696260548,-490.0,0.00023658,2]
[367189282,1750696260558,-630.21981496,0.00023658,2]
[367189283,1750696260567,-490.0,0.00023658,2]
[367189284,1750696260577,-490.0,0.00023658,2]
[367189285,1750696260586,-490.0,0.00023658,2]
[367189286,1750696260597,-490.0,0.00023658,2]
[367189287,1750696260606,-490.0,0.00023658,2]
[367189288,1750696260616,-490.0,0.00023658,2]
[367189289,1750696260625,-848.31,0.00023658,2]
[367189290,1750696260635,-549.56,0.00023658,2]
[367189291,1750696260644,-490.0,0.00023658,2]
[367189292,1750696260653,-490.0,0.00023658,2]
[367189293,1750696260668,-490.0,0.00023658,2]
[367189294,1750696260677,-490.0,0.00023658,2]
[367189295,1750696260686,-280.0,0.00023658,2]
[367189296,1750696260696,-490.0,0.00023658,2]
[367189297,1750696260705,-490.0,0.00023658,2]
[367189298,1750696260714,-490.0,0.00023658,2]
[367189299,1750696260724,-490.0,0.00023658,2]
[367189300,1750696260734,-490.0,0.00023658,2]
[367189301,1750696260744,-490.0,0.00023658,2]
[367189302,1750696260753,-490.0,0.00023658,2]
[367189303,1750696260762,-490.0,0.00023658,2]
[367189304,1750696260771,-490.0,0.00023658,2]
[367189305,1750696260780,-490.0,0.00023658,2]
[367189306,1750696260789,-490.0,0.00023658,2]
[367189307,1750696260799,-853.71,0.00023658,2]
[367189308,1750696260808,-760.17,0.00023658,2]
[367189309,1750696260824,-490.0,0.00023658,2]
[367189310,1750696260833,-490.0,0.00023658,2]
[367189311,1750696260842,-582.89,0.00023658,2]
[367189312,1750696260851,-490.0,0.00023658,2]
[367189313,1750696260862,-490.0,0.00023658,2]
[367189314,1750696260871,-490.0,0.00023658,2]
[367189315,1750696260881,-826.4,0.00023658,2]
[367189316,1750696260892,-490.0,0.00023658,2]
[367189317,1750696260902,-490.0,0.00023658,2]
[367189318,1750696260914,-490.0,0.00023658,2]
[367189319,1750696260924,-490.0,0.00023658,2]
[367189320,1750696260933,-909.58,0.00023658,2]
[367189321,1750696260943,-490.0,0.00023658,2]
[367189322,1750696260952,-490.0,0.00023658,2]
[367189323,1750696260961,-490.0,0.00023658,2]
[367189324,1750696260971,-959.85,0.00023658,2]
[367189325,1750696260981,-490.0,0.00023658,2]
[367189326,1750696260990,-490.0,0.00023658,2]
[367189327,1750696261000,-490.54070079,0.00023658,2]
[367189328,1750696261010,-490.0,0.00023658,2]
[367189329,1750696261020,-490.0,0.00023658,2]
[367189330,1750696261030,-490.0,0.00023658,2]
[367189331,1750696261039,-490.0,0.00023658,2]
[367189332,1750696261049,-490.0,0.00023658,2]
[367189333,1750696261058,-490.0,0.00023658,2]
[367189334,1750696261068,-490.0,0.00023658,2]
[367189335,1750696261078,-490.0,0.00023658,2]
[367189336,1750696261087,-490.0,0.00023658,2]
[367189337,1750696261097,-490.0,0.00023658,2]
[367189338,1750696261107,-490.0,0.00023658,2]
[367189339,1750696261117,-863.39,0.00023658,2]
[367189340,1750696261127,-500.0,0.00023658,2]
[367189341,1750696261135,-490.0,0.00023658,2]
[367189342,1750696261145,-490.0,0.00023658,2]
[367189343,1750696261155,-1004.05,0.00023658,2]
[367189344,1750696261169,-490.0,0.00023658,2]
[367189345,1750696261179,-490.0,0.00023658,2]
[367189346,1750696261188,-490.0,0.00023658,2]
[367189347,1750696261197,-861.66,0.00023658,2]
[367189348,1750696261207,-500.0,0.00023658,2]
[367189349,1750696261216,-1199.78,0.00023658,2]
[367189350,1750696261226,-1252.32,0.00023658,2]
[367189351,1750696261236,-490.0,0.00023658,2]
[367189352,1750696261245,-1062.6,0.00023658,2]
[367189353,1750696261255,-490.0,0.00023658,2]
[367189354,1750696261264,-490.0,0.00023658,2]
[367189355,1750696261273,-490.0,0.00023658,2]
[367189356,1750696261283,-500.92,0.00023658,2]
[367189357,1750696261293,-490.0,0.00023658,2]